fUST/lending_fUST_20240409
["ID","MTS","AMOUNT","RATE_DAILY","PERIOD"]
[321926022,1712637049280,-500.0,0.00038858,5]
[321926024,1712637049289,-500.0,0.00038858,5]
[321926026,1712637049298,-500.0,0.00038858,5]
[321926028,1712637049307,-500.0,0.00038858,5]
[321926029,1712637049316,-500.0,0.00038858,5]
[321926030,1712637049326,-500.0,0.00038858,5]
[321926031,1712637049335,-502.69994019,0.00038858,5]
[321926032,1712637049344,-138.82678461,0.00038859,2]
[321926083,1712638027145,-157.26509838,0.00027256,2]
[321926084,1712638027165,-154.98450155,0.00027256,2]
[321926085,1712638027185,-52.32042029,0.00027257,2]
[321926086,1712638042992,-211.11716122,0.00027257,2]
[321926087,1712638043011,-2121.15236818,0.00027257,2]
[321926088,1712638043031,-100.78476727,0.00027258,2]
[321926089,1712638053099,-470.02690454,0.00027256,2]
[321926090,1712638053119,-84.80091342,0.00027258,2]
[321926091,1712638053138,-3137.24198449,0.00027258,2]
[321926092,1712638053158,-300.0,0.00027258,2]
[321926093,1712638053177,-300.0,0.00027258,2]
[321926094,1712638053196,-1676.27874844,0.00027259,2]
[321926095,1712638147097,-712.91814825,0.00027259,2]
[321926096,1712638156117,-901.87925221,0.00027259,2]
[321926097,1712638156139,-10649.50307533,0.00027259,2]
[321926101,1712638226180,467.0,0.00025159,2]
[321926116,1712638232393,-775.67929842,0.00025159,2]
[321926117,1712638232402,-453.00000032,0.00027258,2]
[321926118,1712638232412,-2083.17070126,0.00027259,2]
[321926119,1712638232508,-6402.84735167,0.00027259,2]
[321926120,1712638232518,-156.53654773,0.0002728,2]
[321926121,1712638232527,-161.426683,0.00027397,2]
[321926122,1712638232539,-180.282164,0.00027397,2]
[321926123,1712638232548,-162.716011,0.00027397,2]
[321926124,1712638232558,-1242.67929842,0.00030159,2]
[321926125,1712638232568,-400.0,0.00030197,2]
[321926126,1712638232578,-400.0,0.00030197,2]
[321926127,1712638232588,-554.882762,0.00030198,2]
[321926128,1712638232598,-1489.5408297,0.00030297,2]
[321926129,1712638232609,-156.53654773,0.00030391,2]
[321926130,1712638232618,-176.024479,0.00030924,2]
[321926131,1712638232627,-3918.409894,0.00031441,2]
[321926132,1712638232638,-380.0,0.00031578,2]
[321926133,1712638232647,-2849.91680945,0.00032979,4]
[321926134,1712638232658,-560.0,0.00033216,2]
[321926135,1712638232668,-821.78099915,0.00033496,2]
[321926136,1712638232677,-156.53654773,0.00033501,2]
[321926137,1712638232687,-1242.67929842,0.00035159,2]
[321926138,1712638232696,-630.08904996,0.00035171,2]
[321926139,1712638232705,-162.716011,0.00035225,2]
[321926140,1712638232715,-831.34295781,0.00035277,4]
[321926141,1712638232724,-152.28371719,0.00035516,7]
[321926142,1712638232734,-500.0,0.00035616,2]
[321926143,1712638232743,-500.0,0.00035616,2]
[321926144,1712638232752,-500.0,0.00035616,2]
[321926145,1712638232761,-1402.08,0.00035616,2]
[321926146,1712638232770,-8678.11,0.00035616,2]
[321926147,1712638232780,-503.13598563,0.00035616,2]
[321926148,1712638232789,-503.44939261,0.00035616,2]
[321926149,1712638232798,-500.0,0.00035616,2]
[321926150,1712638232807,-500.0,0.00035616,2]
[321926151,1712638232816,-1440.14,0.00035616,2]
[321926152,1712638232826,-503.24110331,0.00035616,2]
[321926153,1712638232836,-592.7698751,0.00035616,2]
[321926154,1712638232846,-500.67888828,0.00035616,2]
[321926155,1712638232855,-500.0,0.00035616,2]
[321926156,1712638232865,-500.35650114,0.00035616,2]
[321926157,1712638232873,-412.84933697,0.00035616,2]
[321926158,1712638232884,-1644.18,0.00035616,2]
[321926159,1712638232893,-500.0,0.00035616,2]
[321926160,1712638232902,-500.0,0.00035616,2]
[321926161,1712638232914,-516.34384226,0.00035616,2]
[321926162,1712638232924,-500.0,0.00035616,2]
[321926163,1712638232933,-300.0,0.00035616,2]
[321926164,1712638232942,-500.0,0.00035616,2]
[321926165,1712638233006,-500.0,0.00035616,2]
[321926166,1712638233028,-28299.57,0.00035616,2]
[321926167,1712638233037,-500.0,0.00035616,2]
[321926168,1712638233046,-8420.04,0.00035616,2]
[321926169,1712638233055,-504.18724316,0.00035616,2]
[321926170,1712638233065,-1000.0,0.00035616,2]
[321926171,1712638233075,-500.0,0.00035616,2]
[321926172,1712638233086,-500.0,0.00035616,2]
[321926173,1712638233096,-514.59037785,0.00035616,2]
[321926174,1712638233106,-500.0,0.00035616,2]
[321926175,1712638233116,-1322.41,0.00035889,5]
[321926176,1712638233126,-526.5,0.00035889,5]
[321926177,1712638233135,-917.73,0.00035889,5]
[321926178,1712638233144,-500.0,0.00035889,5]
[321926179,1712638233153,-815.1,0.00035889,5]
[321926180,1712638233162,-1722.46,0.00035889,5]
[321926181,1712638233172,-1721.39,0.00035889,5]
[321926182,1712638233182,-500.0,0.0003589,5]
[321926183,1712638233191,-1402.08,0.0003589,5]
[321926184,1712638233200,-7661.42897701,0.0003589,5]
[321926205,1712638238529,-500.0,0.00035615,7]
[321926206,1712638238541,-197.06839396,0.00035615,7]
[321926207,1712638238550,-420.4759239,0.00035615,7]
[321926208,1712638238560,-179.27377637,0.00035615,7]
[321926209,1712638238569,-328.10223305,0.00035615,7]
[321926210,1712638238583,-500.0,0.00035616,2]
[321926211,1712638238593,-1340.77,0.00035889,5]
[321926212,1712638238602,-1016.68102299,0.0003589,5]
[321926213,1712638238612,-500.0,0.0003589,5]
[321926214,1712638238622,-500.0,0.0003589,5]
[321926215,1712638238631,-1440.14,0.0003589,5]
[321926217,1712638238640,-500.0,0.0003589,5]
[321926219,1712638238649,-1644.18,0.0003589,5]
[321926221,1712638238658,-585.40827387,0.0003589,5]
[321926223,1712638238667,-500.0,0.0003589,5]
[321926224,1712638238678,-300.0,0.0003589,5]
[321926225,1712638238688,-500.0,0.0003589,5]
[321926226,1712638238697,-500.0,0.0003589,5]
[321926227,1712638238707,-28299.57,0.0003589,5]
[321926228,1712638238716,-500.0,0.0003589,5]
[321926229,1712638238726,-8420.04,0.0003589,5]
[321926230,1712638238735,-1000.0,0.0003589,5]
[321926231,1712638238745,-503.0308769,0.0003589,5]
[321926232,1712638238754,-500.0,0.0003589,5]
[321926233,1712638238763,-500.0,0.0003589,5]
[321926234,1712638238773,-500.0,0.0003589,5]
[321926235,1712638238782,-2000.0,0.00035899,2]
[321926236,1712638238791,-158.51515046,0.00035997,4]
[321926237,1712638238800,-253.55931685,0.00035997,4]
[321926238,1712638238809,-155.11189512,0.00035997,4]
[321926239,1712638238818,-308.90389827,0.00035997,4]
[321926240,1712638238828,-281.69212597,0.00035997,4]
[321926241,1712638238837,-723.32613224,0.00035997,4]
[321926242,1712638238847,-283.43382457,0.00035997,4]
[321926243,1712638238856,-1538.48198338,0.00035997,4]
[321926244,1712638238866,-1167.75042401,0.00035997,4]
[321926245,1712638238876,-500.0,0.00035998,5]
[321926246,1712638238885,-1202.65,0.00035998,5]
[321926248,1712638238895,-500.0,0.00035998,5]
[321926250,1712638238904,-500.0,0.00035998,5]
[321926252,1712638238914,-510.69726211,0.00035998,5]
[321926254,1712638238925,-841.14,0.00035998,5]
[321926256,1712638238934,-500.0,0.00035998,5]
[321926258,1712638238944,-500.0,0.00035998,5]
[321926260,1712638238953,-3264.39,0.00035998,5]
[321926262,1712638238963,-500.0,0.00035998,5]
[321926264,1712638238972,-500.0,0.00035998,5]
[321926266,1712638238983,-1889.41,0.00035998,5]
[321926268,1712638238992,-827.95,0.00035998,5]
[321926270,1712638239002,-500.0,0.00035998,5]
[321926272,1712638239013,-1408.24,0.00035998,5]
[321926274,1712638239022,-500.0,0.00035998,5]
[321926277,1712638239032,-1687.69,0.00035998,5]
[321926279,1712638239043,-2123.04,0.00035998,5]
[321926281,1712638239052,-601.76,0.00035998,5]
[321926282,1712638239061,-500.0,0.00035998,5]
[321926284,1712638239070,-500.0,0.00035998,5]
[321926286,1712638239080,-500.0,0.00035998,5]
[321926288,1712638239089,-500.0,0.00035998,5]
[321926289,1712638239099,-24590.98,0.00035998,5]
[321926290,1712638239109,-500.0,0.00035998,5]
[321926291,1712638239118,-500.0,0.00035998,5]
[321926292,1712638239127,-500.0,0.00035998,5]
[321926293,1712638239136,-5323.68,0.00035998,5]
[321926294,1712638239145,-835.94,0.00035998,5]
[321926295,1712638239154,-500.0,0.00035998,5]
[321926296,1712638239163,-500.0,0.00035998,5]
[321926297,1712638239173,-1340.06,0.00035998,5]
[321926298,1712638239183,-500.0,0.00035998,5]
[321926299,1712638239192,-500.0,0.00035998,5]
[321926300,1712638239201,-836.76,0.00035998,5]
[321926301,1712638239210,-500.0,0.00035998,5]
[321926302,1712638239218,-3083.15,0.00035998,5]
[321926303,1712638239227,-5583.49,0.00035998,5]
[321926304,1712638239236,-500.0,0.00035998,5]
[321926305,1712638239245,-90722.62770786,0.00035999,3]
[321926306,1712638239254,-511.76885002,0.00035999,5]
[321926307,1712638239263,-500.0,0.00035999,5]
[321926308,1712638239271,-500.0,0.00035999,5]
[321926309,1712638239280,-544.43991186,0.00035999,5]
[321926310,1712638239288,-500.0,0.00035999,5]
[321926311,1712638239297,-500.0,0.00035999,5]
[321926312,1712638239306,-635.83122054,0.00035999,5]
[321926313,1712638239315,-500.0,0.00035999,5]
[321926314,1712638239323,-500.0,0.00035999,5]
[321926315,1712638239332,-500.0,0.00035999,5]
[321926316,1712638239341,-500.0,0.00035999,5]
[321926317,1712638239349,-500.0,0.00035999,5]
[321926318,1712638239358,-502.34184716,0.00035999,5]
[321926319,1712638239367,-500.93753839,0.00035999,5]
[321926320,1712638239376,-502.7509837,0.00035999,5]
[321926321,1712638239384,-501.39891535,0.00035999,5]
[321926322,1712638239393,-501.32324898,0.00035999,5]
[321926323,1712638239402,-500.0,0.00035999,5]
[321926324,1712638239411,-500.0,0.00035999,5]
[321926325,1712638239421,-1531.51,0.00035999,5]
[321926326,1712638239430,-151.0,0.00035999,5]
[321926327,1712638239439,-500.0,0.00035999,5]
[321926328,1712638239448,-500.0,0.00035999,5]
[321926329,1712638239457,-500.0,0.00035999,5]
[321926330,1712638239467,-500.0,0.00035999,5]
[321926331,1712638239476,-500.0,0.00035999,5]
[321926332,1712638239486,-500.0,0.00035999,5]
[321926333,1712638239496,-500.0,0.00035999,5]
[321926334,1712638239508,-1343.3,0.00035999,5]
[321926335,1712638239517,-500.0,0.00035999,5]
[321926336,1712638239527,-500.0,0.00035999,5]
[321926337,1712638239595,-500.0,0.00035999,5]
[321926338,1712638239605,-1033.38,0.00035999,5]
[321926339,1712638239615,-500.0,0.00035999,5]
[321926340,1712638239625,-509.89917167,0.00035999,5]
[321926341,1712638239635,-500.0,0.00035999,5]
[321926342,1712638239644,-547.35714023,0.00035999,5]
[321926343,1712638239654,-503.03406492,0.00035999,5]
[321926344,1712638239663,-500.0,0.00035999,5]
[321926345,1712638239673,-500.0,0.00035999,5]
[321926346,1712638239682,-2390.3,0.00035999,5]
[321926347,1712638239691,-1359.72,0.00035999,5]
[321926348,1712638239700,-500.0,0.00035999,5]
[321926349,1712638239709,-508.51067803,0.00035999,5]
[321926350,1712638239719,-500.0,0.00035999,5]
[321926351,1712638239728,-500.0,0.00035999,5]
[321926352,1712638239737,-500.0,0.00035999,5]
[321926353,1712638239746,-504.98235069,0.00035999,5]
[321926354,1712638239755,-500.0,0.00035999,5]
[321926355,1712638239764,-500.0,0.00035999,5]
[321926356,1712638239774,-500.0,0.00035999,5]
[321926357,1712638239783,-243.30155645,0.00035999,5]
[321926358,1712638239793,-504.57614176,0.00035999,5]
[321926359,1712638239804,-741.1,0.00035999,5]
[321926360,1712638239813,-500.0,0.00035999,5]
[321926361,1712638239823,-500.0,0.00035999,5]
[321926362,1712638239832,-500.0,0.00035999,5]
[321926363,1712638239842,-1492.19,0.00035999,5]
[321926364,1712638239851,-500.0,0.00035999,5]
[321926365,1712638239860,-500.0,0.00035999,5]
[321926366,1712638239870,-500.0,0.00035999,5]
[321926367,1712638239879,-500.0,0.00035999,5]
[321926368,1712638239888,-500.0,0.00035999,5]
[321926369,1712638239898,-500.0,0.00035999,5]
[321926371,1712638239908,-500.0,0.00035999,5]
[321926372,1712638239918,-500.0,0.00035999,5]
[321926373,1712638239928,-500.0,0.00035999,5]
[321926374,1712638239937,-500.0,0.00035999,5]
[321926375,1712638239946,-902.94,0.00035999,5]
[321926376,1712638239955,-500.0,0.00035999,5]
[321926377,1712638239964,-308.57438522,0.00035999,5]
[321926378,1712638239973,-500.0,0.00035999,5]
[321926379,1712638239982,-356.58231325,0.00035999,5]
[321926380,1712638239992,-500.0,0.00035999,5]
[321926381,1712638240001,-500.0,0.00035999,5]
[321926382,1712638240010,-500.0,0.00035999,5]
[321926383,1712638240020,-872.15,0.00035999,5]
[321926384,1712638240030,-500.0,0.00035999,5]
[321926385,1712638240039,-502.60549485,0.00035999,5]
[321926386,1712638240049,-507.31352608,0.00035999,5]
[321926387,1712638240058,-1582.96,0.00035999,5]
[321926388,1712638240067,-500.0,0.00035999,5]
[321926389,1712638240081,-500.93752798,0.00035999,5]
[321926390,1712638240099,-500.0,0.00035999,5]
[321926391,1712638240112,-591.32482724,0.00035999,5]
[321926393,1712638240127,-500.0,0.00035999,5]
[321926394,1712638240143,-502.69595013,0.00035999,5]
[321926395,1712638240159,-500.0,0.00035999,5]
[321926396,1712638240172,-500.0,0.00035999,5]
[321926397,1712638240186,-648.4,0.00035999,5]
[321926398,1712638240200,-500.0,0.00035999,5]
[321926399,1712638240216,-500.0,0.00035999,5]
[321926400,1712638240227,-468.14624828,0.00035999,5]
[321926401,1712638240244,-500.0,0.00035999,5]
[321926402,1712638240259,-390.36034507,0.00035999,5]
[321926403,1712638240272,-500.0,0.00035999,5]
[321926405,1712638240288,-500.0,0.00035999,5]
[321926407,1712638240304,-500.0,0.00035999,5]
[321926409,1712638240321,-500.0,0.00035999,5]
[321926410,1712638240335,-1837.69,0.00035999,2]
[321926412,1712638240346,-500.0,0.00035999,5]
[321926413,1712638240359,-778.18,0.00035999,5]
[321926415,1712638240373,-500.0,0.00035999,5]
[321926416,1712638240387,-500.0,0.00035999,5]
[321926417,1712638240399,-500.0,0.00035999,5]
[321926418,1712638240412,-500.0,0.00035999,5]
[321926419,1712638240428,-500.0,0.00035999,5]
[321926420,1712638240440,-500.0,0.00035999,5]
[321926421,1712638240453,-500.0,0.00035999,5]
[321926422,1712638240466,-500.0,0.00035999,5]
[321926423,1712638240478,-500.0,0.00035999,5]
[321926424,1712638240492,-501.812222,0.00035999,5]
[321926425,1712638240506,-500.0,0.00035999,5]
[321926426,1712638240519,-500.0,0.00035999,5]
[321926427,1712638240533,-500.0,0.00035999,5]
[321926428,1712638240546,-500.0,0.00035999,5]
[321926429,1712638240559,-531.95,0.00035999,5]
[321926430,1712638240571,-500.0,0.00035999,5]
[321926431,1712638240589,-1136.07,0.00035999,5]
[321926432,1712638240602,-500.0,0.00035999,5]
[321926433,1712638240614,-10000.0,0.00036,2]
[321926434,1712638240628,-526.5,0.00036163,5]
[321926435,1712638240640,-917.73,0.00036163,5]
[321926436,1712638240653,-500.0,0.00036163,5]
[321926437,1712638240666,-815.1,0.00036163,5]
[321926438,1712638240680,-1722.46,0.00036163,5]
[321926439,1712638240693,-1721.39,0.00036163,5]
[321926440,1712638240706,-1340.77,0.00036163,5]
[321926441,1712638240720,-500.0,0.00036164,5]
[321926442,1712638240733,-1402.08,0.00036164,5]
[321926443,1712638240747,-8678.11,0.00036164,5]
[321926444,1712638240757,-548.06806477,0.00036164,5]
[321926445,1712638240766,-500.0,0.00036164,5]
[321926446,1712638240872,-1440.14,0.00036164,5]
[321926447,1712638240890,-500.0,0.00036164,5]
[321926448,1712638240900,-1644.18,0.00036164,5]
[321926449,1712638240910,-510.87924336,0.00036164,5]
[321926450,1712638240921,-300.0,0.00036164,5]
[321926451,1712638240931,-500.0,0.00036164,5]
[321926452,1712638240940,-639.63522035,0.00036164,5]
[321926453,1712638240949,-28299.57,0.00036164,5]
[321926454,1712638240959,-500.0,0.00036164,5]
[321926455,1712638240968,-1424.57653407,0.00036164,5]
[321926456,1712638240984,-2597.419,0.00036164,5]
[321926457,1712638241112,-511.43256492,0.00035998,5]
[321926458,1712638241122,-1843.83222263,0.00036164,5]
[321926472,1712638245369,-953.92597415,0.00035998,5]
[321926488,1712638306963,-799.19959429,0.0003627,35]
[321926490,1712638445178,-2251.9212,0.00035587,30]
[321926491,1712638445205,-354.90095702,0.00035997,15]
[321926492,1712638445228,-500.0,0.00035997,15]
[321926493,1712638445251,-317.04277717,0.00035997,15]
[321926494,1712638445275,-416.20579726,0.00035997,15]
[321926495,1712638445297,-434.6717087,0.00035997,15]
[321926496,1712638445321,-254.85434362,0.00035997,15]
[321926499,1712638479806,-378.2442662,0.0003,10]
[321926500,1712638487525,-33293.52631141,0.0003,7]
[321926501,1712638508783,-45060.96550244,0.0003,5]
[321926512,1712639204220,1600.0,0.0002,2]
[321926513,1712639230165,-240.67684413,0.00025255,2]
[321926514,1712639230186,-154.98450155,0.00025256,2]
[321926515,1712639230284,-154.98450155,0.00025256,2]
[321926516,1712639230304,-730.62237876,0.00025256,2]
[321926517,1712639244126,-154.98450155,0.00025255,4]
[321926518,1712639244148,-249.02706731,0.00025255,2]
[321926519,1712639252102,-154.98450155,0.00025254,2]
[321926520,1712639252121,-154.98450155,0.00025254,2]
[321926521,1712639252141,-127.7639571,0.00025255,2]
[321926522,1712639271919,19135.52112826,0.0002,2]
[321926523,1712639287884,15700.92702,0.0002,2]
[321926525,1712639345085,-3319.0907133,0.00024886,2]
[321926526,1712639345108,-154.98450155,0.00025249,2]
[321926527,1712639345130,-2093.30000142,0.0002525,2]
[321926528,1712639345150,-154.98450155,0.0002525,2]
[321926529,1712639345172,-181.0288212,0.0002525,2]
[321926530,1712639345193,-300.0,0.0002525,2]
[321926531,1712639345214,-300.0,0.0002525,2]
[321926532,1712639345235,-154.98450155,0.00025251,2]
[321926533,1712639345254,-154.98450155,0.00025251,2]
[321926534,1712639345275,-781.78611462,0.00025251,2]
[321926535,1712639345297,-1087.22335945,0.00025252,2]
[321926536,1712639345318,-1545.877682,0.00025252,2]
[321926537,1712639345340,-7964.30665319,0.00025252,2]
[321926538,1712639362142,-447.60281197,0.00025252,2]
[321926702,1712639438534,-410.64569456,0.00023152,2]
[321926705,1712639438544,-300.0,0.00025251,2]
[321926708,1712639438553,-300.0,0.00025251,2]
[321926712,1712639438563,-154.98450155,0.00025251,4]
[321926715,1712639438571,-205.77862135,0.00025252,2]
[321926720,1712639438591,-14.4007464,0.00025252,2]
[321926723,1712639438600,-14333.99393176,0.00025252,2]
[321926725,1712639438610,-155.31412985,0.00025261,2]
[321926729,1712639438619,-364.6793816,0.00025262,2]
[321926731,1712639438628,-171.333637,0.00025269,2]
[321926734,1712639438638,-277.441381,0.00025655,2]
[321926737,1712639438647,-679.2902271,0.00026464,2]
[321926741,1712639438657,-420.0,0.00027348,2]
[321926742,1712639438667,-164.278138,0.00027397,2]
[321926744,1712639438677,-157.720323,0.00027397,2]
[321926746,1712639438685,-1294.70051388,0.00027656,2]
[321926748,1712639438695,-211.67412932,0.00027765,2]
[321926750,1712639438704,-202.69902273,0.00027765,2]
[321926752,1712639438713,-823.37976113,0.00027765,2]
[321926754,1712639438722,-158.61153935,0.00027766,2]
[321926756,1712639438732,-420.0,0.00027776,2]
[321926758,1712639438741,-622.96451136,0.00027787,2]
[321926760,1712639438750,-410.64569456,0.00028152,2]
[321926762,1712639438759,-5620.13603472,0.0002877,2]
[321926764,1712639438768,-239.89903029,0.000289,2]
[321926766,1712639438777,-840.66911666,0.00029,2]
[321926768,1712639438787,-620.14822557,0.00029177,2]
[321926771,1712639438797,-587.0,0.0002962,2]
[321926772,1712639438807,-996.34762981,0.00029685,2]
[321926774,1712639438820,-203.85276439,0.00029982,3]
[321926776,1712639438830,-201.09549684,0.00029985,2]
[321926778,1712639438841,-155.97000402,0.00029985,3]
[321926780,1712639438850,-192.98589435,0.00029985,2]
[321926782,1712639438859,-290.38720189,0.00029985,2]
[321926784,1712639438869,-155.38043718,0.00029985,2]
[321926786,1712639438878,-303.26282161,0.00029985,2]
[321926788,1712639438887,-211.82568144,0.00029985,2]
[321926790,1712639438897,-300.0749406,0.00029985,2]
[321926792,1712639438906,-156.07139287,0.00029985,2]
[321926794,1712639438915,-243.93954417,0.00029985,2]
[321926796,1712639438924,-288.25852322,0.00029985,2]
[321926798,1712639438933,-158.22587908,0.00029985,2]
[321926800,1712639438942,-261.41934101,0.00029985,2]
[321926802,1712639438952,-235.46220989,0.00029985,2]
[321926804,1712639438962,-185.19278758,0.00029985,2]
[321926806,1712639438971,-501.541674,0.00029985,2]
[321926808,1712639438980,-1482.12028671,0.00029985,2]
[321926810,1712639438991,-336.54855302,0.00029985,2]
[321926812,1712639439000,-224.2054183,0.00029985,2]
[321926814,1712639439009,-211.47618057,0.00029985,2]
[321926816,1712639439018,-202.77027478,0.00029985,2]
[321926818,1712639439028,-282.0779007,0.00029985,2]
[321926820,1712639439037,-156.78959323,0.00029985,2]
[321926822,1712639439046,-230.49890099,0.00029985,2]
[321926824,1712639439055,-365.59888098,0.00029985,2]
[321926826,1712639439064,-554.57521976,0.00029986,2]
[321926828,1712639439074,-375.51434576,0.00029986,2]
[321926830,1712639439084,-23803.09920649,0.00029987,2]
[321926832,1712639439093,-168.33817547,0.0003,2]
[321926834,1712639439102,-662.62050677,0.0003,2]
[321926836,1712639439111,-574.86367116,0.0003,2]
[321926838,1712639439120,-1013.10269998,0.0003,4]
[321926840,1712639439129,-154.98450155,0.0003,4]
[321926842,1712639439138,-319.0,0.0003,2]
[321926844,1712639439148,-587.0,0.00030554,2]
[321926846,1712639439157,-176.296828,0.00031741,2]
[321926848,1712639439167,-823.0,0.0003208,2]
[321926850,1712639439176,-239.89903028,0.00032208,2]
[321926852,1712639439185,-410.64569456,0.00033152,2]
[321926854,1712639439194,-1050.38441504,0.00033485,4]
[321926856,1712639439203,-157.720323,0.00033486,2]
[321926858,1712639439212,-823.0,0.00033609,2]
[321926859,1712639439222,-164.278138,0.00034247,2]
[321926861,1712639439232,-894.0,0.00034744,2]
[321926863,1712639439244,-414.42423304,0.00034846,4]
[321926865,1712639439253,-6335.72753851,0.00035,7]
[321926867,1712639439262,-154.73791791,0.00035516,2]
[321926868,1712639439272,-239.89903028,0.00035516,2]
[321926870,1712639439281,-313.00965131,0.00035614,4]
[321926872,1712639439290,-207.63262723,0.00035614,4]
[321926879,1712639439300,-1936.22663734,0.00035614,4]
[321926881,1712639439367,-154.98450155,0.00035614,4]
[321926883,1712639439377,-1399.78697588,0.00035614,4]
[321926885,1712639439385,-216.67010204,0.00035614,4]
[321926886,1712639439394,-156.54810628,0.00035615,4]
[321926888,1712639439403,-179.48021003,0.00035615,4]
[321926890,1712639439412,-45361.31385393,0.00035616,3]
[321926892,1712639439422,-500.0,0.00035616,2]
[321926894,1712639439434,-500.0,0.00035616,2]
[321926895,1712639439444,-536.17016406,0.00035616,2]
[321926897,1712639439453,-1287.33,0.00035616,2]
[321926899,1712639439462,-500.0,0.00035616,2]
[321926901,1712639439471,-500.0,0.00035616,2]
[321926903,1712639439480,-500.0,0.00035616,2]
[321926904,1712639439490,-500.0,0.00035616,2]
[321926906,1712639439499,-500.52287205,0.00035616,2]
[321926908,1712639439507,-500.0,0.00035616,2]
[321926910,1712639439516,-287.66369961,0.00035616,2]
[321926911,1712639439525,-500.0,0.00035616,2]
[321926913,1712639439534,-500.0,0.00035616,2]
[321926915,1712639439543,-500.0,0.00035616,2]
[321926917,1712639439552,-500.0,0.00035616,2]
[321926919,1712639439561,-500.0,0.00035616,2]
[321926920,1712639439571,-500.0,0.00035616,2]
[321926922,1712639439580,-500.0,0.00035616,2]
[321926924,1712639439589,-500.0,0.00035616,2]
[321926926,1712639439599,-500.0,0.00035616,2]
[321926928,1712639439608,-506.57960828,0.00035616,2]
[321926930,1712639439617,-527.96,0.00035616,2]
[321926931,1712639439626,-1961.66,0.00035616,2]
[321926933,1712639439635,-500.0,0.00035616,2]
[321926935,1712639439645,-500.0,0.00035616,2]
[321926937,1712639439654,-865.32,0.00035616,2]
[321926938,1712639439663,-500.0,0.00035616,2]
[321926940,1712639439673,-325.17017256,0.00035616,2]
[321926942,1712639439684,-835.81,0.00035616,2]
[321926944,1712639439693,-500.0,0.00035616,2]
[321926946,1712639439703,-500.0,0.00035616,2]
[321926948,1712639439712,-500.0,0.00035616,2]
[321926950,1712639439721,-503.4144669,0.00035616,2]
[321926951,1712639439730,-500.0,0.00035616,2]
[321926953,1712639439740,-500.0,0.00035616,2]
[321926955,1712639439749,-500.0,0.00035616,2]
[321926957,1712639439758,-500.0,0.00035616,2]
[321926959,1712639439768,-552.88419134,0.00035616,2]
[321926960,1712639439777,-500.0,0.00035616,2]
[321926962,1712639439786,-500.0,0.00035616,2]
[321926964,1712639439796,-500.0,0.00035616,2]
[321926965,1712639439806,-521.86048731,0.00035616,2]
[321926967,1712639439815,-1267.08,0.00035616,2]
[321926969,1712639439829,-680.33,0.00035616,2]
[321926971,1712639439838,-1226.82,0.00035616,2]
[321926973,1712639439847,-505.22505911,0.00035616,2]
[321926975,1712639439857,-500.0,0.00035616,2]
[321926976,1712639439866,-500.0,0.00035616,2]
[321926978,1712639439876,-503.66454974,0.00035616,2]
[321926980,1712639439886,-500.0,0.00035616,2]
[321926982,1712639439895,-500.0,0.00035616,2]
[321926984,1712639439905,-500.0,0.00035616,2]
[321926986,1712639439915,-518.5238583,0.00035616,2]
[321926988,1712639439925,-500.0,0.00035616,2]
[321926990,1712639439933,-506.30224677,0.00035616,2]
[321926991,1712639439942,-500.0,0.00035616,2]
[321926993,1712639439951,-500.0,0.00035616,2]
[321926995,1712639439961,-500.0,0.00035616,2]
[321926997,1712639439970,-500.0,0.00035616,2]
[321926999,1712639439979,-500.0,0.00035616,2]